fUSD/lending_fUSD_20260112
["ID","MTS","AMOUNT","RATE_DAILY","PERIOD"]
[401454852,1768235446185,-162.447438,0.00017148,2]
[401454853,1768235446216,-151.0,0.00017148,2]
[401454854,1768235446236,-151.0,0.00017148,2]
[401454855,1768235446247,-154.2514,0.00017148,2]
[401454856,1768235446257,-151.0,0.00017148,2]
[401454857,1768235446267,-154.2514,0.00017148,2]
[401454858,1768235446277,-151.0,0.00017148,2]
[401454859,1768235446286,-154.2514,0.00017148,2]
[401454860,1768235446296,-151.0,0.00017148,2]
[401454861,1768235446306,-421.950315,0.00017148,2]
[401454862,1768235446315,-151.0,0.00017148,2]
[401454863,1768235446325,-151.0,0.00017148,2]
[401454864,1768235446335,-154.2514,0.00017148,2]
[401454865,1768235446345,-151.0,0.00017148,2]
[401454866,1768235446354,-421.950315,0.00017148,2]
[401454867,1768235446363,-421.950315,0.00017148,2]
[401454868,1768235446373,-421.950315,0.00017148,2]
[401454869,1768235446383,-151.0,0.00017148,2]
[401454870,1768235446393,-151.0,0.00017148,2]
[401454871,1768235446403,-151.0,0.00017148,2]
[401454872,1768235446412,-771.304416,0.00017148,2]
[401454873,1768235446422,-771.304416,0.00017148,2]
[401454875,1768235446431,-771.304416,0.00017148,2]
[401454877,1768235446440,-771.304416,0.00017148,2]
[401454878,1768235446449,-151.0,0.00017148,2]
[401454880,1768235446459,-171.582681,0.00017148,2]
[401454881,1768235446468,-151.0,0.00017148,2]
[401454882,1768235446478,-151.0,0.00017148,2]
[401454883,1768235446487,-151.0,0.00017148,2]
[401454884,1768235446497,-479.875376,0.00017148,2]
[401454885,1768235446506,-479.875376,0.00017148,2]
[401454886,1768235446516,-479.875376,0.00017148,2]
[401454887,1768235446525,-151.0,0.00017148,2]
[401454888,1768235446534,-151.0,0.00017148,2]
[401454889,1768235446544,-479.875376,0.00017148,2]
[401454890,1768235446553,-151.0,0.00017148,2]
[401454891,1768235446562,-151.0,0.00017148,2]
[401454892,1768235446571,-151.0,0.00017148,2]
[401454893,1768235446580,-172.73046,0.00017148,2]
[401454894,1768235446590,-699.466395,0.00017148,2]
[401454895,1768235446601,-874.374948,0.00017148,2]
[401454896,1768235446610,-268.281214,0.00017148,2]
[401454897,1768235446619,-699.466395,0.00017148,2]
[401454898,1768235446629,-874.374948,0.00017148,2]
[401454899,1768235446639,-699.466395,0.00017148,2]
[401454900,1768235446650,-874.374948,0.00017148,2]
[401454901,1768235446659,-699.466395,0.00017148,2]
[401454902,1768235446669,-874.374948,0.00017148,2]
[401454903,1768235446681,-151.0,0.00017148,2]
[401454904,1768235446690,-151.0,0.00017148,2]
[401454905,1768235446699,-151.0,0.00017148,2]
[401454906,1768235446709,-151.0,0.00017148,2]
[401454907,1768235446719,-151.0,0.00017148,2]
[401454908,1768235446728,-151.0,0.00017148,2]
[401454909,1768235446739,-151.0,0.00017148,2]
[401454910,1768235446750,-151.0,0.00017148,2]
[401454911,1768235446760,-151.0,0.00017148,2]
[401454912,1768235446769,-151.0,0.00017148,2]
[401454913,1768235446778,-247.183117,0.00017149,2]
[401454914,1768235446788,-151.0,0.00017149,2]
[401454915,1768235446797,-477.962061,0.00017149,2]
[401454916,1768235446807,-477.962061,0.00017149,2]
[401454917,1768235446816,-151.0,0.00017149,2]
[401454918,1768235446826,-477.962061,0.00017149,2]
[401454919,1768235446836,-151.0,0.00017149,2]
[401454920,1768235446846,-477.962061,0.00017149,2]
[401454921,1768235446856,-805.141908,0.00017149,2]
[401454922,1768235446865,-450.17321,0.00017149,2]
[401454923,1768235446875,-805.141908,0.00017149,2]
[401454924,1768235446886,-450.17321,0.00017149,2]
[401454925,1768235446895,-151.0,0.00017149,2]
[401454926,1768235446904,-805.141908,0.00017149,2]
[401454927,1768235446914,-450.17321,0.00017149,2]
[401454928,1768235446923,-805.141908,0.00017149,2]
[401454929,1768235446932,-450.17321,0.00017149,2]
[401454930,1768235446941,-151.0,0.00017149,2]
[401454931,1768235446950,-259.602146,0.00017149,2]
[401454932,1768235446960,-259.602146,0.00017149,2]
[401454933,1768235446969,-151.0,0.00017149,2]
[401454934,1768235446978,-259.602146,0.00017149,2]
[401454935,1768235446988,-259.602146,0.00017149,2]
[401454936,1768235446997,-151.0,0.00017149,2]
[401454937,1768235447007,-151.0,0.00017149,2]
[401454938,1768235447016,-151.0,0.00017149,2]
[401454939,1768235447026,-281.122042,0.00017149,2]
[401454940,1768235447035,-151.0,0.00017149,2]
[401454941,1768235447044,-504.024202,0.00017149,2]
[401454942,1768235447053,-504.024202,0.00017149,2]
[401454943,1768235447063,-504.024202,0.00017149,2]
[401454944,1768235447072,-504.024202,0.00017149,2]
[401454945,1768235447082,-1856.9,0.00017149,2]
[401454946,1768235447092,-150.0,0.0001715,2]
[401454947,1768235447102,-150.0,0.00017166,2]
[401454948,1768235447111,-151.0,0.00017166,2]
[401454949,1768235447121,-151.0,0.00017166,2]
[401454950,1768235447130,-151.0,0.00017166,2]
[401454951,1768235447139,-151.0,0.00017166,2]
[401454952,1768235447149,-151.0,0.00017166,2]
[401454953,1768235447158,-1134.973572,0.00017166,2]
[401454954,1768235447167,-151.0,0.00017166,2]
[401454955,1768235447177,-1134.973572,0.00017166,2]
[401454956,1768235447186,-1134.973572,0.00017166,2]
[401454957,1768235447195,-1134.973572,0.00017166,2]
[401454958,1768235447205,-165.460861,0.00017166,2]
[401454959,1768235447214,-151.0,0.00017166,2]
[401454960,1768235447223,-151.0,0.00017166,2]
[401454961,1768235447234,-151.0,0.00017166,2]
[401454962,1768235447243,-151.0,0.00017166,2]
[401454963,1768235447252,-151.0,0.00017166,2]
[401454964,1768235447261,-151.0,0.00017166,2]
[401454965,1768235447271,-290.778857,0.00017166,2]
[401454966,1768235447280,-151.0,0.00017166,2]
[401454967,1768235447290,-151.0,0.00017166,2]
[401454968,1768235447300,-151.0,0.00017166,2]
[401454969,1768235447309,-290.778857,0.00017166,2]
[401454970,1768235447319,-151.0,0.00017166,2]
[401454971,1768235447329,-209.244302,0.00017166,2]
[401454972,1768235447338,-290.778857,0.00017166,2]
[401454973,1768235447348,-290.778857,0.00017166,2]
[401454974,1768235447357,-151.0,0.00017166,2]
[401454975,1768235447367,-253.602826,0.00017166,2]
[401454976,1768235447377,-1455.235658,0.00017166,2]
[401454977,1768235447387,-253.602826,0.00017166,2]
[401454978,1768235447397,-1455.235658,0.00017166,2]
[401454979,1768235447407,-151.0,0.00017166,2]
[401454980,1768235447417,-253.602826,0.00017166,2]
[401454981,1768235447427,-1455.235658,0.00017166,2]
[401454982,1768235447437,-189.779945,0.00017166,2]
[401454983,1768235447446,-253.602826,0.00017166,2]
[401454984,1768235447456,-1455.235658,0.00017166,2]
[401454985,1768235447467,-216.579647,0.00017166,2]
[401454986,1768235447477,-247.096045,0.00017166,2]
[401454987,1768235447491,-247.096045,0.00017166,2]
[401454988,1768235447500,-247.096045,0.00017166,2]
[401454989,1768235447510,-247.096045,0.00017166,2]
[401454990,1768235447520,-195.307106,0.00017166,2]
[401454992,1768235447530,-187.206296,0.00017166,2]
[401454993,1768235447540,-195.307106,0.00017166,2]
[401454995,1768235447550,-151.0,0.00017166,2]
[401454996,1768235447559,-151.0,0.00017166,2]
[401454997,1768235447569,-195.307106,0.00017166,2]
[401454999,1768235447579,-151.0,0.00017166,2]
[401455000,1768235447589,-195.307106,0.00017166,2]
[401455002,1768235447598,-151.0,0.00017166,2]
[401455004,1768235447607,-151.0,0.00017166,2]
[401455005,1768235447617,-151.0,0.00017166,2]
[401455006,1768235447626,-151.0,0.00017166,2]
[401455007,1768235447636,-154.580471,0.00017166,2]
[401455008,1768235447646,-151.0,0.00017166,2]
[401455009,1768235447655,-151.0,0.00017166,2]
[401455010,1768235447666,-151.0,0.00017166,2]
[401455011,1768235447677,-151.0,0.00017166,2]
[401455012,1768235447687,-151.0,0.00017166,2]
[401455013,1768235447697,-151.0,0.00017166,2]
[401455014,1768235447706,-151.0,0.00017166,2]
[401455015,1768235447717,-1081.728977,0.00017166,2]
[401455016,1768235447726,-1081.728977,0.00017166,2]
[401455017,1768235447739,-151.0,0.00017166,2]
[401455018,1768235447750,-1081.728977,0.00017166,2]
[401455019,1768235447760,-151.0,0.00017166,2]
[401455020,1768235447770,-1081.728977,0.00017166,2]
[401455021,1768235447780,-151.0,0.00017166,2]
[401455022,1768235447790,-150.0,0.00017172,2]
[401455023,1768235447800,-9521.99316741,0.00017174,2]
[401455024,1768235447809,-789.0,0.00017183,2]
[401455025,1768235447819,-343.0,0.00017188,2]
[401455026,1768235447829,-150.0,0.0001719,2]
[401455027,1768235447839,-500.0,0.00017196,2]
[401455028,1768235447849,-674.0,0.00017196,2]
[401455029,1768235447860,-150.0,0.000172,2]
[401455030,1768235447871,-150.0,0.000172,2]
[401455031,1768235447880,-2400.0,0.000172,2]
[401455032,1768235447890,-368.63457312,0.00017204,2]
[401455033,1768235447900,-13447.8962363,0.00017204,2]
[401455034,1768235447910,-17401.2894,0.00017204,2]
[401455035,1768235447920,-150.0,0.00017208,2]
[401455036,1768235447935,-150.0,0.0001721,2]
[401455037,1768235447945,-789.0,0.00017237,2]
[401455038,1768235447956,-150.0,0.00017244,2]
[401455039,1768235447967,-150.0,0.0001725,2]
[401455040,1768235447977,-150.0,0.0001725,2]
[401455041,1768235447989,-500.0,0.00017251,2]
[401455042,1768235447999,-674.0,0.00017251,2]
[401455043,1768235448009,-150.0,0.00017254,2]
[401455044,1768235448019,-1000.0,0.00017263,2]
[401455045,1768235448029,-200.0,0.00017271,2]
[401455046,1768235448039,-150.0,0.0001728,2]
[401455047,1768235448050,-150.0,0.0001728,2]
[401455048,1768235448060,-789.0,0.00017292,2]
[401455049,1768235448070,-150.0,0.00017298,2]
[401455050,1768235448082,-150.0,0.000173,2]
[401455051,1768235448092,-2400.0,0.000173,2]
[401455052,1768235448102,-151.0,0.000173,2]
[401455053,1768235448112,-151.0,0.000173,2]
[401455054,1768235448123,-151.0,0.000173,2]
[401455055,1768235448134,-151.0,0.000173,2]
[401455056,1768235448145,-151.0,0.000173,2]
[401455057,1768235448155,-151.0,0.000173,2]
[401455058,1768235448165,-151.0,0.000173,2]
[401455059,1768235448175,-151.0,0.000173,2]
[401455060,1768235448185,-182.77568,0.000173,2]
[401455061,1768235448195,-151.0,0.000173,2]
[401455062,1768235448204,-218.106124,0.000173,2]
[401455063,1768235448214,-151.0,0.000173,2]
[401455064,1768235448225,-151.0,0.000173,2]
[401455065,1768235448236,-151.0,0.000173,2]
[401455066,1768235448246,-151.0,0.000173,2]
[401455067,1768235448256,-151.0,0.000173,2]
[401455068,1768235448265,-151.0,0.000173,2]
[401455069,1768235448275,-151.0,0.000173,2]
[401455070,1768235448285,-151.0,0.000173,2]
[401455071,1768235448295,-162.585717,0.000173,2]
[401455072,1768235448305,-151.0,0.000173,2]
[401455073,1768235448315,-151.0,0.000173,2]
[401455074,1768235448325,-151.0,0.000173,2]
[401455075,1768235448335,-500.0,0.00017306,2]
[401455076,1768235448344,-674.0,0.00017306,2]
[401455077,1768235448355,-150.0,0.00017316,2]
[401455078,1768235448365,-343.0,0.00017325,2]
[401455079,1768235448375,-9468.35149038,0.00017328,2]
[401455080,1768235448384,-150.0,0.00017341,2]
[401455081,1768235448395,-789.0,0.00017347,2]
[401455082,1768235448406,-150.0,0.0001735,2]
[401455083,1768235448416,-155.16,0.00017351,2]
[401455084,1768235448426,-150.0,0.00017352,2]
[401455085,1768235448436,-240.42,0.0001736,2]
[401455086,1768235448446,-500.0,0.00017361,2]
[401455087,1768235448456,-674.0,0.00017361,2]
[401455088,1768235448466,-639.34,0.00017364,2]
[401455089,1768235448476,-150.0,0.0001737,2]
[401455090,1768235448487,-150.0,0.00017385,2]
[401455091,1768235448498,-150.0,0.00017388,2]
[401455092,1768235448507,-150.0,0.000174,2]
[401455093,1768235448517,-150.0,0.000174,2]
[401455094,1768235448527,-150.0,0.000174,2]
[401455095,1768235448537,-150.0,0.000174,2]
[401455096,1768235448547,-2400.0,0.000174,2]
[401455097,1768235448556,-1000.0,0.000174,2]
[401455098,1768235448566,-789.0,0.00017402,2]
[401455099,1768235448576,-500.0,0.00017416,2]
[401455100,1768235448586,-674.0,0.00017416,2]
[401455101,1768235448596,-150.0,0.00017424,2]
[401455102,1768235448605,-150.0,0.00017429,2]
[401455103,1768235448615,-368.63457312,0.00017436,2]
[401455104,1768235448625,-200.0,0.00017444,2]
[401455105,1768235448634,-150.0,0.0001745,2]
[401455106,1768235448644,-789.0,0.00017457,2]
[401455107,1768235448654,-150.0,0.0001746,2]
[401455108,1768235448664,-150.0,0.0001746,2]
[401455109,1768235448675,-343.0,0.0001746,2]
[401455110,1768235448686,-770.88368717,0.00017469,2]
[401455111,1768235448696,-500.0,0.0001747,2]
[401455112,1768235448705,-674.0,0.0001747,2]
[401455113,1768235448716,-150.0,0.00017473,2]
[401455114,1768235448726,-150.0,0.00017496,2]
[401455115,1768235448737,-343.0,0.00017497,2]
[401455116,1768235448747,-150.0,0.000175,2]
[401455117,1768235448758,-2400.0,0.000175,2]
[401455118,1768235448768,-1000.0,0.000175,2]
[401455119,1768235448777,-168.0,0.00017507,2]
[401455120,1768235448787,-789.0,0.00017511,2]
[401455121,1768235448798,-150.0,0.00017517,2]
[401455122,1768235448807,-9468.35149038,0.00017519,2]
[401455123,1768235448817,-4735.0,0.0001752,2]
[401455124,1768235448827,-331.2342163,0.00017525,2]
[401455125,1768235448837,-674.0,0.00017525,2]
[401455126,1768235448846,-150.0,0.00017532,2]
[401455127,1768235448856,-469.0,0.00017538,2]
[401455128,1768235448867,-150.0,0.0001755,2]
[401455129,1768235448876,-150.0,0.0001755,2]
[401455130,1768235448887,-150.0,0.0001755,2]
[401455131,1768235448896,-150.0,0.00017561,2]
[401455132,1768235448906,-789.0,0.00017566,2]
[401455133,1768235448915,-324.05202517,0.00017568,2]
[401455134,1768235448925,-553.64373807,0.00017568,2]
[401455135,1768235448935,-151.0,0.00017568,2]
[401455136,1768235448944,-150.0,0.00017568,2]
[401455137,1768235448954,-158.96562276,0.00017577,2]
[401455138,1768235448964,-674.0,0.0001758,2]
[401455139,1768235448973,-2400.0,0.000176,2]
[401455140,1768235448986,-1000.0,0.000176,2]
[401455141,1768235448995,-151.0,0.000176,2]
[401455142,1768235449005,-151.0,0.000176,2]
[401455145,1768235449014,-4384.716023,0.000176,2]
[401455147,1768235449024,-476.05072,0.000176,2]
[401455148,1768235449034,-151.0,0.000176,2]
[401455149,1768235449043,-4384.716023,0.000176,2]
[401455150,1768235449053,-402.021243,0.000176,2]
[401455151,1768235449062,-476.05072,0.000176,2]
[401455152,1768235449071,-257.783842,0.000176,2]
[401455153,1768235449081,-4384.716023,0.000176,2]
[401455154,1768235449091,-402.021243,0.000176,2]
[401455155,1768235449100,-476.05072,0.000176,2]
[401455156,1768235449110,-4384.716023,0.000176,2]
[401455157,1768235449119,-476.05072,0.000176,2]
[401455158,1768235449129,-1591.869563,0.000176,2]
[401455159,1768235449139,-151.0,0.000176,2]
[401455160,1768235449148,-151.0,0.000176,2]
[401455161,1768235449159,-203.639295,0.000176,2]
[401455162,1768235449169,-1591.869563,0.000176,2]
[401455163,1768235449178,-151.0,0.000176,2]
[401455164,1768235449188,-371.528882,0.000176,2]
[401455165,1768235449198,-1591.869563,0.000176,2]
[401455166,1768235449207,-371.528882,0.000176,2]
[401455167,1768235449217,-402.021243,0.000176,2]
[401455168,1768235449226,-1591.869563,0.000176,2]
[401455169,1768235449238,-371.528882,0.000176,2]
[401455170,1768235449248,-286.532901,0.000176,2]
[401455171,1768235449258,-402.021243,0.000176,2]
[401455172,1768235449268,-927.543865,0.000176,2]
[401455173,1768235449278,-371.528882,0.000176,2]
[401455174,1768235449288,-286.532901,0.000176,2]
[401455175,1768235449298,-927.543865,0.000176,2]
[401455176,1768235449308,-1413.021714,0.000176,2]
[401455177,1768235449317,-2693.835854,0.000176,2]
[401455178,1768235449327,-286.532901,0.000176,2]
[401455179,1768235449338,-927.543865,0.000176,2]
[401455180,1768235449348,-1413.021714,0.000176,2]
[401455181,1768235449358,-286.532901,0.000176,2]
[401455182,1768235449368,-2693.835854,0.000176,2]
[401455183,1768235449378,-151.0,0.000176,2]
[401455184,1768235449390,-1413.021714,0.000176,2]
[401455185,1768235449401,-927.543865,0.000176,2]
[401455186,1768235449411,-2693.835854,0.000176,2]
[401455187,1768235449421,-1413.021714,0.000176,2]
[401455188,1768235449431,-718.397083,0.000176,2]
[401455189,1768235449440,-2693.835854,0.000176,2]
[401455190,1768235449451,-718.397083,0.000176,2]
[401455191,1768235449460,-2096.876442,0.000176,2]
[401455192,1768235449471,-2096.876442,0.000176,2]
[401455193,1768235449480,-151.0,0.000176,2]
[401455194,1768235449491,-2096.876442,0.000176,2]
[401455195,1768235449501,-718.397083,0.000176,2]
[401455196,1768235449511,-2096.876442,0.000176,2]
[401455197,1768235449522,-718.397083,0.000176,2]
[401455198,1768235449532,-151.0,0.000176,2]
[401455199,1768235449541,-151.0,0.000176,2]
[401455200,1768235449551,-265.669936,0.000176,2]
[401455201,1768235449561,-151.0,0.000176,2]
[401455202,1768235449573,-151.0,0.000176,2]
[401455203,1768235449582,-151.0,0.000176,2]
[401455204,1768235449593,-233.506514,0.000176,2]
[401455205,1768235449604,-151.0,0.000176,2]
[401455206,1768235449615,-233.506514,0.000176,2]
[401455207,1768235449626,-151.0,0.000176,2]
[401455208,1768235449637,-585.678073,0.000176,2]
[401455209,1768235449646,-233.506514,0.000176,2]
[401455210,1768235449656,-150.0,0.000176,2]
[401455211,1768235449665,-300.88588,0.000176,2]
[401455212,1768235449678,-585.678073,0.000176,2]
[401455213,1768235449690,-233.506514,0.000176,2]
[401455214,1768235449701,-585.678073,0.000176,2]
[401455215,1768235449712,-585.678073,0.000176,2]
[401455216,1768235449724,-199.646617,0.000176,2]
[401455217,1768235449735,-199.646617,0.000176,2]
[401455218,1768235449744,-199.646617,0.000176,2]
[401455219,1768235449754,-2239.607864,0.000176,2]
[401455220,1768235449764,-199.646617,0.000176,2]
[401455221,1768235449776,-2239.607864,0.000176,2]
[401455222,1768235450014,-2239.607864,0.000176,2]
[401455223,1768235450036,-2239.607864,0.000176,2]
[401455224,1768235450047,-150.0,0.000176,2]
[401455225,1768235450056,-10216.0,0.000176,2]
[401455226,1768235450065,-150.0,0.00017604,2]
[401455227,1768235450075,-150.0,0.00017605,2]
[401455228,1768235450084,-200.0,0.00017618,2]
[401455229,1768235450094,-1000.0,0.00017621,2]
[401455230,1768235450103,-1000.0,0.00017621,2]
[401455231,1768235450113,-213.20330559,0.00017621,2]
[401455232,1768235450122,-1000.0,0.00017621,2]
[401455233,1768235450132,-1001.478272,0.00017621,2]
[401455234,1768235450141,-201.20066245,0.00017621,2]
[401455235,1768235450151,-749.39394419,0.00017621,2]
[401455236,1768235450161,-1000.0,0.00017621,2]
[401455237,1768235450170,-789.0,0.00017621,2]
[401455238,1768235450180,-674.0,0.00017635,2]
[401455239,1768235450190,-343.0,0.00017637,2]
[401455240,1768235450200,-639.34,0.00017638,2]
[401455241,1768235450209,-150.0,0.0001764,2]
[401455242,1768235450219,-150.0,0.0001764,2]
[401455243,1768235450229,-7217.71732448,0.0001764,2]
[401455244,1768235450239,-150.0,0.00017649,2]
[401455245,1768235450249,-186.72,0.00017649,2]
[401455246,1768235450259,-150.0,0.0001765,2]
[401455247,1768235450269,-368.63457312,0.00017668,2]
[401455248,1768235450280,-789.0,0.00017676,2]
[401455249,1768235450290,-150.0,0.00017676,2]
[401455250,1768235450300,-343.0,0.00017678,2]
[401455251,1768235450310,-674.0,0.00017689,2]
[401455252,1768235450321,-150.0,0.00017693,2]
[401455253,1768235450331,-150.0,0.00017698,2]
[401455254,1768235450340,-150.0,0.000177,2]
[401455255,1768235450351,-2400.0,0.000177,2]
[401455256,1768235450362,-1000.0,0.000177,2]
[401455257,1768235450371,-150.0,0.000177,2]
[401455258,1768235450381,-151.0,0.00017706,2]
[401455259,1768235450390,-9468.35149038,0.00017709,2]
[401455260,1768235450400,-150.0,0.00017712,2]
[401455261,1768235450409,-1589.0,0.00017718,2]
[401455262,1768235450419,-2649.87102997,0.0001772,2]
[401455263,1768235450429,-155.16,0.00017726,2]
[401455264,1768235450439,-150.0,0.0001773,2]
[401455265,1768235450449,-789.0,0.00017731,2]
[401455266,1768235450459,-150.0,0.00017737,2]
[401455267,1768235450469,-693.0,0.00017744,2]
[401455268,1768235450479,-150.0,0.00017748,2]
[401455269,1768235450490,-150.0,0.0001775,2]
[401455270,1768235450500,-152.62137386,0.00017753,2]
[401455271,1768235450510,-2649.87102997,0.00017756,2]
[401455272,1768235450521,-150.0,0.0001778,2]
[401455273,1768235450531,-150.0,0.00017784,2]
[401455274,1768235450541,-789.0,0.00017785,2]
[401455275,1768235450551,-2649.87102997,0.00017792,2]
[401455276,1768235450561,-200.0,0.00017794,2]
[401455277,1768235450570,-500.0,0.00017799,2]
[401455278,1768235450580,-2400.0,0.000178,2]
[401455279,1768235450590,-2000.0,0.000178,2]
[401455280,1768235450599,-30000.0,0.000178,2]
[401455281,1768235450608,-239.44755982,0.000178,3]
[401455282,1768235450619,-150.0,0.000178,2]
[401455283,1768235450628,-150.0,0.000178,2]
[401455284,1768235450638,-156.587,0.00017807,2]
[401455285,1768235450648,-500.0,0.00017808,2]
[401455286,1768235450657,-220.00667831,0.00017808,2]
[401455287,1768235450666,-150.0,0.00017813,2]
[401455288,1768235450677,-1589.0,0.00017813,2]
[401455289,1768235450688,-2434.65585,0.0001782,2]
[401455290,1768235450698,-2434.65586,0.0001782,2]
[401455291,1768235450707,-2434.65586,0.0001782,2]
[401455292,1768235450717,-2434.65585,0.0001782,2]
[401455293,1768235450727,-2434.65585,0.0001782,2]
[401455294,1768235450738,-2434.65585,0.0001782,2]
[401455295,1768235450748,-151.0,0.0001782,2]
[401455296,1768235450758,-151.0,0.0001782,2]
[401455297,1768235450767,-151.0,0.0001782,2]
[401455298,1768235450777,-777.804847,0.0001782,2]
[401455299,1768235450787,-842.057944,0.0001782,2]
[401455300,1768235450796,-210.207373,0.0001782,2]
[401455301,1768235450807,-151.0,0.0001782,2]
[401455302,1768235450816,-777.804847,0.0001782,2]
[401455303,1768235450826,-151.0,0.0001782,2]
[401455304,1768235450836,-151.0,0.0001782,2]
[401455305,1768235450845,-842.057944,0.0001782,2]
[401455306,1768235450855,-777.804847,0.0001782,2]
[401455307,1768235450864,-218.683607,0.0001782,2]
[401455308,1768235450874,-777.804847,0.0001782,2]
[401455309,1768235450884,-174.004674,0.0001782,2]
[401455310,1768235450893,-842.057944,0.0001782,2]
[401455311,1768235450903,-1847.877127,0.0001782,2]
[401455312,1768235450912,-842.057944,0.0001782,2]
[401455313,1768235450922,-1847.877127,0.0001782,2]
[401455314,1768235450932,-1847.877127,0.0001782,2]
[401455315,1768235450943,-151.0,0.0001782,2]
[401455316,1768235450953,-1847.877127,0.0001782,2]
[401455317,1768235450963,-866.607694,0.0001782,2]
[401455318,1768235450973,-866.607694,0.0001782,2]
[401455319,1768235450982,-181.544542,0.0001782,2]
[401455320,1768235450992,-866.607694,0.0001782,2]
[401455321,1768235451001,-236.318865,0.0001782,2]
[401455322,1768235451011,-866.607694,0.0001782,2]
[401455323,1768235451021,-2544.397561,0.0001782,2]
[401455324,1768235451031,-2544.397561,0.0001782,2]
[401455325,1768235451040,-2544.397561,0.0001782,2]
[401455326,1768235451050,-2544.397561,0.0001782,2]
[401455327,1768235451060,-771.460055,0.0001782,2]
[401455328,1768235451069,-832.7422,0.0001782,2]
[401455329,1768235451083,-771.460055,0.0001782,2]
[401455330,1768235451093,-832.7422,0.0001782,2]
[401455331,1768235451103,-771.460055,0.0001782,2]
[401455332,1768235451114,-832.7422,0.0001782,2]
[401455333,1768235451124,-151.0,0.0001782,2]
[401455334,1768235451135,-771.460055,0.0001782,2]
[401455335,1768235451146,-151.0,0.0001782,2]
[401455336,1768235451156,-832.7422,0.0001782,2]
[401455337,1768235451166,-151.0,0.0001782,2]
[401455338,1768235451175,-151.0,0.0001782,2]
[401455339,1768235451185,-151.0,0.0001782,2]
[401455340,1768235451195,-151.0,0.0001782,2]
[401455341,1768235451205,-151.0,0.0001782,2]
[401455342,1768235451214,-257.591853,0.0001782,2]
[401455343,1768235451224,-151.0,0.0001782,2]
[401455344,1768235451235,-257.591853,0.0001782,2]
[401455345,1768235451245,-151.0,0.0001782,2]
[401455346,1768235451255,-151.0,0.0001782,2]
[401455347,1768235451265,-257.591853,0.0001782,2]
[401455348,1768235451275,-1888.793769,0.0001782,2]
[401455349,1768235451286,-151.0,0.0001782,2]
[401455350,1768235451296,-1888.793769,0.0001782,2]
[401455351,1768235451307,-151.0,0.0001782,2]
[401455352,1768235451318,-257.591853,0.0001782,2]
[401455353,1768235451329,-156.174364,0.0001782,2]
[401455354,1768235451339,-1888.793769,0.0001782,2]
[401455355,1768235451349,-440.919773,0.0001782,2]
[401455356,1768235451360,-902.413371,0.0001782,2]
[401455357,1768235451370,-1888.793769,0.0001782,2]
[401455358,1768235451380,-440.919773,0.0001782,2]
[401455359,1768235451391,-404.421894,0.0001782,2]
[401455360,1768235451402,-151.0,0.0001782,2]
[401455361,1768235451413,-902.413371,0.0001782,2]
[401455362,1768235451424,-440.919773,0.0001782,2]